bitfinex/quotes_SOLUSD_20240809
["timestamp","ask_amount","ask_price","bid_price","bid_amount"]
[1723221443006,6.5805,151.97,151.92,6.5822]
[1723221443212,71.5795,151.99,151.91,16.4561]
[1723221443393,6.5799,151.98,151.93,6.5818]
[1723221443583,0.12549,151.98,151.91,16.4561]
[1723221443894,65.0,151.99,151.93,6.5815]
[1723221444101,6.5802,151.97,151.92,6.5823]
[1723221444617,6.5807,151.96,151.91,23.0388]
[1723221444815,6.5803,151.97,151.92,6.5822]
[1723221445816,6.5798,151.98,151.94,6.5815]
[1723221446019,6.5799,151.98,151.93,6.5819]
[1723221446625,71.5794,151.99,151.94,6.5814]
[1723221447298,6.5786,152.01,151.96,6.5803]
[1723221447500,6.5786,152.01,151.94,37.43]
[1723221447899,22.36481883,152.04,151.97,6.58]
[1723221447900,6.5781,152.02,151.97,6.58]
[1723221448212,9.21144811,152.07,152.02,6.578]
[1723221448408,23.0091,152.12,152.02,37.43]
[1723221448707,6.85396477,152.1,152.04,6.577]
[1723221448913,23.0091,152.12,152.04,6.577]
[1723221449101,6.5753,152.09,152.04,6.577]
[1723221449619,6.5753,152.09,152.03,17.75879224]
[1723221449620,6.85332193,152.13,152.06,37.43]
[1723221449820,10.30001267,152.14,152.06,37.43]
[1723221450398,6.5741,152.12,152.07,6.5759]
[1723221451015,10.30001267,152.14,152.06,37.43]
[1723221451194,10.30001267,152.14,152.06,45.32137477]
[1723221451390,10.30001267,152.14,152.06,44.0063]
[1723221451690,13.42591459,152.16,152.11,6.574]
[1723221452018,6.5722,152.16,152.1,37.43]
[1723221452399,13.42292695,152.19,152.14,44.0028]
[1723221452619,13.42292695,152.19,152.14,43.8985]
[1723221452620,6.5707,152.19,152.14,43.8985]
[1723221452795,6.5713,152.18,152.14,43.8985]
[1723221452991,47.72710199,152.22,152.1,37.43]
[1723221453215,6.573,152.14,152.1,6.1191]
[1723221453520,53.8561,152.2,152.1,6.1191]
[1723221453698,6.5741,152.12,152.06,66.5657]
[1723221453901,6.5744,152.11,152.06,29.1357]
[1723221454307,0.12549,152.15,152.06,29.1357]
[1723221454597,6.5742,152.11,152.06,29.136]
[1723221454819,6.5738,152.12,152.06,29.136]
[1723221455203,45.25098,152.15,152.06,22.5598]
[1723221455401,45.25098,152.15,152.02,50.3712]
[1723221455402,6.5759,152.08,152.02,50.3712]
[1723221455609,6.5759,152.08,152.02,12.9412]
[1723221455819,6.5759,152.08,152.02,29.3854]
[1723221456119,6.576,152.07,152.02,29.3854]
[1723221456514,40.01412093,152.18,152.06,37.43]
[1723221456720,6.5704,152.2,152.12,37.43]
[1723221456901,10.29710199,152.22,152.14,37.43]
[1723221456902,6.5707,152.19,152.14,37.43]
[1723221457095,6.5706,152.2,152.14,37.43]
[1723221457396,22.2269753,152.24,152.15,7.8867252]
[1723221457397,6.5702,152.21,152.15,7.8867252]
[1723221457600,6.5704,152.2,152.15,6.5723]
[1723221458007,6.8524753,152.24,152.1,43.4542]
[1723221458008,37.43,152.22,152.1,43.4542]
[1723221458212,37.43,152.22,152.11,0.12549]
[1723221458405,6.571,152.19,152.13,6.5731]
[1723221458605,6.8524753,152.24,152.14,38.74447494]
[1723221458828,6.5694,152.22,152.15,1.31428812]
[1723221459119,6.5701,152.21,152.16,6.5719]
[1723221459629,6.8524753,152.24,152.16,37.43]
[1723221459801,6.8524753,152.24,152.15,16.4308]
[1723221460124,6.5707,152.19,152.15,16.4308]
[1723221460518,6.5711,152.18,152.12,53.8641]
[1723221460824,6.5707,152.2,152.14,6.5728]
[1723221461143,0.12549,152.23,152.13,6.5732]
[1723221461144,6.5711,152.18,152.13,6.5732]
[1723221461502,6.5713,152.18,152.13,6.5729]
[1723221462019,37.43,152.22,152.1,43.4542]
[1723221462206,37.43,152.2,152.1,6.0242]
[1723221462406,36.92676,152.21,152.11,1.31467995]
[1723221462621,45.0,152.2,152.12,16.4342]
[1723221462831,45.0,152.2,152.15,6.5723]
[1723221463008,26.5703,152.21,152.15,6.5723]
[1723221463203,20.0,152.21,152.14,53.8614]
[1723221463409,13.42509105,152.23,152.16,53.8592]
[1723221463834,13.42509105,152.23,152.17,1.43956071]
[1723221464005,13.42509105,152.23,152.18,38.74405324]
[1723221464426,6.85609105,152.23,152.16,16.4292]
[1723221464904,6.5699,152.21,152.16,23.0011]
[1723221465105,6.85609105,152.23,152.16,16.4292]
[1723221465410,6.5698,152.21,152.16,60.4311]
[1723221466113,6.5705,152.2,152.16,16.4292]
[1723221467010,6.571,152.19,152.12,37.43]
[1723221467340,6.5728,152.15,152.1,12.5986]
[1723221467516,6.5721,152.16,152.11,6.5741]
[1723221468035,45.0,152.18,152.1,6.0242]
[1723221468231,51.5711,152.19,152.14,6.5725]
[1723221468536,20.0,152.18,152.14,6.5728]
[1723221468738,45.0,152.21,152.14,6.5728]
[1723221468944,6.5711,152.18,152.13,23.0057]
[1723221469117,45.0,152.21,152.14,6.5728]
[1723221469118,6.5708,152.19,152.14,6.5728]
[1723221469317,6.5708,152.19,152.13,16.4325]
[1723221469318,45.0,152.21,152.15,6.5722]
[1723221469518,6.5711,152.18,152.14,6.5727]
[1723221469825,6.5711,152.18,152.13,16.4325]
[1723221470438,6.5729,152.14,152.1,22.4603]
[1723221470825,37.43,152.2,152.1,59.8903]
[1723221471040,20.0,152.19,152.12,37.43]
[1723221471247,26.5695,152.22,152.17,6.5715]
[1723221471545,6.5695,152.22,152.18,6.5711]
[1723221471844,6.5695,152.22,152.17,6.5715]
[1723221472343,13.42509105,152.23,152.18,6.571]
[1723221472638,6.5695,152.22,152.17,1.31411065]
[1723221472830,6.85609105,152.23,152.18,61.25588356]
[1723221473036,13.42509105,152.23,152.18,59.9419]
[1723221473242,6.5696,152.22,152.18,59.9419]
[1723221473535,6.85609105,152.23,152.18,6.0851]
[1723221473836,13.42509105,152.23,152.18,12.6561]
[1723221474044,6.85609105,152.23,152.18,6.0851]
[1723221474228,6.5706,152.2,152.15,6.5724]
[1723221474426,6.571,152.19,152.14,12.9429]
[1723221474637,6.571,152.19,152.14,29.375]
[1723221474828,6.5699,152.21,152.16,6.5718]
[1723221475232,6.5703,152.2,152.15,6.5724]
[1723221475543,37.55549,152.21,152.11,16.4351]
[1723221475744,6.5725,152.15,152.11,16.4351]
[1723221475920,6.5734,152.13,152.1,6.3498]
[1723221476121,6.5734,152.13,152.08,23.0134]
[1723221476534,37.43,152.17,152.08,16.4384]
[1723221476722,6.5736,152.13,152.08,23.0136]
[1723221477036,6.5729,152.14,152.09,6.5749]
[1723221477938,65.0,152.16,152.08,16.4384]
[1723221478136,65.0,152.16,152.09,6.575]
[1723221478334,6.5738,152.12,152.08,16.4384]
[1723221479050,6.5734,152.13,152.08,23.0137]
[1723221479355,6.5729,152.14,152.08,16.4384]
[1723221479653,6.5741,152.12,152.08,16.4384]
[1723221479857,6.5745,152.11,152.06,12.926]
[1723221480236,6.5742,152.11,152.07,6.5758]
[1723221480635,6.5738,152.12,152.06,22.7898]
[1723221480844,53.98689,152.15,152.06,29.3657]
[1723221481044,6.5734,152.13,152.06,22.7898]
[1723221481228,6.5738,152.12,152.06,22.7898]
[1723221481443,6.5733,152.13,152.08,6.5754]
[1723221481641,6.5738,152.12,152.08,6.5754]
[1723221481843,6.5738,152.12,152.07,6.5758]
[1723221482060,37.55549,152.15,152.06,22.7898]
[1723221482233,37.43,152.13,152.03,16.4437]
[1723221482436,6.5756,152.08,152.03,23.0209]
[1723221482752,0.12549,152.1,151.98,43.7163]
[1723221482956,0.12549,152.1,152.03,16.4439]
[1723221482957,26.5747,152.1,152.03,16.4439]
[1723221483166,36.6594,152.12,152.02,37.43]
[1723221483335,45.0,152.14,152.06,37.43]
[1723221483683,20.0,152.13,152.06,43.5106]
[1723221484130,26.5733,152.13,152.08,6.5751]
[1723221484332,20.0,152.14,152.07,1.31501794]
[1723221484641,20.0,152.14,152.09,6.5749]
[1723221484642,26.5729,152.14,152.09,6.5749]
[1723221484833,37.43,152.19,152.12,6.5736]
[1723221485031,6.5719,152.17,152.12,6.5736]
[1723221485230,6.85452524,152.18,152.08,37.43]
[1723221485430,6.85452524,152.18,152.09,0.12549]
[1723221485831,6.85452524,152.18,152.08,37.43]
[1723221486033,37.43,152.17,152.06,43.5106]
[1723221486258,20.12549,152.16,152.07,0.12549]
[1723221486450,6.5737,152.13,152.08,6.575]
[1723221486655,6.5728,152.15,152.09,6.5748]
[1723221486854,26.572,152.16,152.1,16.4358]
[1723221487033,20.0,152.17,152.1,16.4358]
[1723221487242,6.85452524,152.18,152.12,53.8635]
[1723221487439,15.8851,152.21,152.13,6.5732]
[1723221487643,6.5716,152.17,152.12,23.0072]
[1723221488154,6.5729,152.14,152.09,23.0121]
[1723221488467,6.5729,152.14,152.09,23.0124]
[1723221489064,6.5721,152.16,152.11,6.574]
[1723221489264,6.85461732,152.2,152.13,6.5732]
[1723221489265,6.5714,152.18,152.13,6.5732]
[1723221489445,6.85461732,152.2,152.12,37.43]
[1723221489643,6.85461732,152.2,152.1,37.43]
[1723221489849,6.572,152.16,152.11,6.5741]
[1723221490160,6.5725,152.15,152.11,6.5741]
[1723221490475,6.5716,152.17,152.09,1.31468873]
[1723221490765,6.85461732,152.2,152.08,37.43]
[1723221490766,0.12549,152.19,152.08,37.43]
[1723221490965,6.5725,152.15,152.1,6.5742]
[1723221491142,6.5725,152.15,152.08,37.43]
[1723221491862,6.5712,152.18,152.1,37.43]
[1723221492066,6.85461732,152.2,152.11,1.31462157]
[1723221492273,6.85461732,152.2,152.16,53.86]
[1723221492560,6.569,152.23,152.17,0.12549]
[1723221492746,6.569,152.23,152.18,6.571]
[1723221492944,13.42105462,152.25,152.2,6.5702]
[1723221493454,6.5686,152.24,152.18,60.428]
[1723221493756,6.5686,152.24,152.18,53.8572]
[1723221493962,6.5686,152.24,152.19,1.31398817]
[1723221494373,13.42115462,152.25,152.2,6.5702]
[1723221494554,26.5685,152.24,152.19,7.88458817]
[1723221495267,6.569,152.23,152.18,60.4282]
[1723221495475,6.569,152.23,152.18,22.9982]
[1723221495852,6.5694,152.22,152.18,16.4272]
[1723221496067,26.5689,152.24,152.19,1.31396717]
[1723221496366,6.5691,152.23,152.19,1.31396717]
[1723221496576,6.5695,152.22,152.18,16.4272]
[1723221497079,6.5695,152.22,152.17,6.5712]
[1723221497256,6.85295462,152.25,152.18,16.4273]
[1723221497580,26.5686,152.24,152.19,6.5703]
[1723221497753,6.5691,152.23,152.18,60.4283]
[1723221498157,6.5695,152.22,152.18,16.4273]
[1723221498692,6.5695,152.22,152.18,22.9984]
[1723221498981,20.0,152.24,152.13,22.6061]
[1723221498982,57.43,152.24,152.13,22.6061]
[1723221499155,6.5708,152.19,152.14,6.5728]
[1723221499472,6.5691,152.23,152.16,37.43]
[1723221499681,6.5691,152.23,152.17,1.31402582]
[1723221499852,13.42115462,152.25,152.2,6.5698]
[1723221500070,13.42115462,152.25,152.2,37.43]
[1723221500366,6.85295462,152.25,152.21,7.88364647]
[1723221500888,6.85295462,152.25,152.21,1.31384647]
[1723221501171,6.566,152.3,152.24,37.43]
[1723221501371,6.5669,152.28,152.25,1.31343164]
[1723221501580,6.5669,152.28,152.24,16.4208]
[1723221502657,6.5662,152.3,152.24,55.16428113]
[1723221503059,6.5662,152.3,152.25,6.568]
[1723221503265,6.5662,152.3,152.26,1.31337859]
[1723221503785,6.5652,152.32,152.27,7.88055412]
[1723221504467,6.5656,152.31,152.27,1.31335412]
[1723221504973,6.85263561,152.33,152.29,6.5662]
[1723221505165,13.41723561,152.33,152.29,1.31303681]
[1723221505368,6.85263561,152.33,152.3,1.31305324]
[1723221505574,6.85263561,152.33,152.28,6.1703]
[1723221505868,6.5656,152.31,152.28,6.1703]
[1723221506073,6.5659,152.3,152.28,6.1703]
[1723221506288,6.5656,152.31,152.26,6.5676]
[1723221506485,6.5656,152.31,152.27,0.12549]
[1723221506659,6.85263561,152.33,152.29,6.5661]
[1723221507173,6.85263561,152.33,152.3,8.00440507]
[1723221507383,13.41733561,152.33,152.28,60.4128]
[1723221507581,6.85263561,152.33,152.25,22.988]
[1723221507880,6.5661,152.3,152.26,0.12549]
[1723221508084,6.5668,152.28,152.24,6.1703]
[1723221508579,6.5664,152.29,152.24,6.1703]
[1723221508759,6.567,152.28,152.24,6.1703]
[1723221508958,53.96899,152.32,152.22,39.3547]
[1723221509166,6.5693,152.23,152.2,6.1104]
[1723221509378,6.5686,152.24,152.2,6.1104]
[1723221509579,6.5674,152.27,152.2,6.1104]
[1723221509786,6.5674,152.27,152.21,1.31368957]
[1723221509787,20.0,152.26,152.21,1.31368957]
[1723221509973,45.0,152.31,152.21,1.31368957]
[1723221510181,20.0,152.3,152.25,6.5681]
[1723221510486,26.566,152.3,152.26,7.8809697]
[1723221510791,20.0,152.3,152.23,16.4215]
[1723221510963,6.5677,152.26,152.22,6.69489]
[1723221511159,26.5656,152.31,152.23,1.43909242]
[1723221511364,6.85263561,152.33,152.28,6.5665]
[1723221511663,6.5652,152.32,152.28,7.87965753]
[1723221511867,13.41763561,152.33,152.28,6.5665]
[1723221512067,13.41763561,152.33,152.29,6.5663]
[1723221512471,13.41763561,152.33,152.28,6.5667]
[1723221512871,13.41763561,152.33,152.29,1.3131027]
[1723221513090,6.85263561,152.33,152.29,17.7284027]
[1723221513294,6.85263561,152.33,152.3,6.69109]
[1723221513596,6.5644,152.34,152.3,0.12549]
[1723221513800,7.99566442,152.37,152.3,0.12549]
[1723221514084,6.85275973,152.37,152.3,38.86843355]
[1723221514396,6.5637,152.36,152.31,6.5653]
[1723221514596,6.5637,152.36,152.32,1.31284204]
[1723221515098,13.41585973,152.37,152.33,1.31284296]
[1723221515465,6.5636,152.36,152.33,1.31284296]
[1723221516268,6.5636,152.36,152.34,1.31275538]
[1723221516471,6.5639,152.35,152.31,16.4133]
[1723221516681,6.85275973,152.37,152.32,7.87769981]
[1723221516889,6.85275973,152.37,152.33,8.00266823]
[1723221517101,6.5626,152.38,152.34,6.5642]
[1723221517397,6.5618,152.4,152.35,7.87615639]
[1723221517692,6.5624,152.39,152.36,1.31242694]
[1723221517866,6.5632,152.37,152.33,16.53659]
[1723221518188,6.8168031,152.41,152.28,13.2112]
[1723221518401,6.5651,152.32,152.28,6.6447]
[1723221519173,6.5655,152.31,152.28,6.6447]
[1723221519376,53.8379,152.37,152.28,13.2115]
[1723221519597,20.0,152.36,152.29,6.566]
[1723221520099,6.5647,152.33,152.28,13.2114]
[1723221520398,6.5643,152.34,152.29,6.5663]
[1723221521093,6.5628,152.38,152.33,6.5646]
[1723221521306,44.2468031,152.41,152.34,1.43821897]
[1723221521307,6.8168031,152.41,152.34,1.43821897]
[1723221521593,13.3781031,152.41,152.37,6.5629]
[1723221521804,6.8168031,152.41,152.38,1.31243223]
[1723221522003,6.8168031,152.41,152.38,7.87483223]
[1723221522293,6.8168031,152.41,152.39,6.562]
[1723221522690,6.8168031,152.41,152.37,22.969]
[1723221522884,13.3781031,152.41,152.38,0.12549]
[1723221523199,13.3781031,152.41,152.36,12.89329]
[1723221523397,13.3781031,152.41,152.37,1.43780434]
[1723221523896,13.3781031,152.41,152.36,12.89329]
[1723221523897,6.8168031,152.41,152.36,6.2045]
[1723221524098,13.3781031,152.41,152.37,1.43781392]
[1723221524281,6.8168031,152.41,152.36,6.2045]
[1723221524475,6.5621,152.39,152.34,23.09959]
[1723221524699,6.5618,152.4,152.35,6.68889]
[1723221525005,6.8168031,152.41,152.38,6.5622]
[1723221525182,6.8168031,152.41,152.39,1.31219515]
[1723221525503,6.8168031,152.41,152.4,0.12549]
[1723221525796,6.8168031,152.41,152.39,6.5619]
[1723221526000,6.8168031,152.41,152.38,54.08658]
[1723221526208,6.8168031,152.41,152.39,0.12549]
[1723221526990,6.8168031,152.41,152.36,60.4105]
[1723221527202,13.3781031,152.41,152.37,0.12549]
[1723221527398,6.8168031,152.41,152.37,0.12549]
[1723221527592,6.5617,152.4,152.37,0.12549]
[1723221527787,6.8168031,152.41,152.36,0.12549]
[1723221527999,13.3783031,152.41,152.36,6.563]
[1723221528178,13.3783031,152.41,152.35,6.68919]
[1723221528179,6.8168031,152.41,152.35,6.68919]
[1723221528496,6.8168031,152.41,152.35,6.5637]
[1723221528697,6.5621,152.39,152.35,6.5637]
[1723221528899,6.8168031,152.41,152.35,6.5637]
[1723221529297,6.8168031,152.41,152.34,16.4096]
[1723221529475,6.8168031,152.41,152.39,6.562]
[1723221529793,6.8168031,152.41,152.4,7.8738597]
[1723221529978,6.8168031,152.41,152.38,37.43]
[1723221530300,6.8168031,152.41,152.38,6.5624]
[1723221530502,6.8168031,152.41,152.37,6.5628]
[1723221530710,6.5621,152.39,152.35,6.68929]
[1723221530888,6.8168031,152.41,152.35,6.68929]
[1723221530889,6.5617,152.4,152.36,0.12549]
[1723221531205,6.8168031,152.41,152.37,16.4068]
[1723221531426,6.8168031,152.41,152.39,6.562]
[1723221531704,6.8168031,152.41,152.4,6.5616]
[1723221531908,6.8168031,152.41,152.4,7.99920396]
[1723221532211,6.8168031,152.41,152.4,6.93807]
[1723221532391,6.8168031,152.41,152.4,6.68709]
[1723221532587,6.8168031,152.41,152.4,7.99920034]
[1723221533205,6.8168031,152.41,152.4,8.12464998]
[1723221533382,6.8168031,152.41,152.4,45.80562998]
[1723221533778,6.8168031,152.41,152.4,7.99915998]
[1723221534206,6.8168031,152.41,152.4,0.12549]
[1723221534393,6.8168031,152.41,152.4,6.68709]
[1723221534590,6.8168031,152.41,152.4,65.51618]
[1723221534784,6.8168031,152.41,152.4,110.76716]
[1723221536094,6.8168031,152.41,152.4,65.76716]
[1723221537505,6.8168031,152.41,152.4,6.33978]
[1723221537683,6.8168031,152.41,152.4,6.0888]
[1723221538201,6.8168031,152.41,152.4,12.6504]
[1723221538889,6.8168031,152.41,152.4,6.21429]
[1723221539298,6.8168031,152.41,152.4,12.90138]
[1723221539487,6.8168031,152.41,152.4,13.15236]
[1723221539805,6.8168031,152.41,152.4,51.89436913]
[1723221539990,6.8168031,152.41,152.4,96.89436913]
[1723221540502,6.8168031,152.41,152.4,95.58236]
[1723221540700,6.8168031,152.41,152.4,96.89420024]
[1723221540901,6.8168031,152.41,152.4,95.58236]
[1723221541104,6.8168031,152.41,152.4,96.89420686]
[1723221541414,6.84990349,152.51,152.41,0.12549]
[1723221541617,7.3281031,152.56,152.46,0.12549]
[1723221541793,26.40752652,152.55,152.46,1.81331641]
[1723221542109,6.5566,152.52,152.48,6.5581]
[1723221542321,6.84849454,152.55,152.51,6.5569]
[1723221542491,7.3717031,152.56,152.52,1.43648273]
[1723221543204,0.8168031,152.56,152.52,1.43648273]
[1723221543795,6.5553,152.55,152.52,1.43648273]
[1723221544089,7.3716031,152.56,152.52,1.43648273]
[1723221544290,0.8168031,152.56,152.52,1.43647668]
[1723221544503,6.5553,152.55,152.52,0.12549]
[1723221544704,6.5559,152.54,152.52,0.12549]
[1723221545311,7.3719031,152.56,152.52,1.43656969]
[1723221545501,6.5552,152.55,152.52,1.43656969]
[1723221545699,6.5552,152.55,152.52,1.31107969]
[1723221546099,0.8168031,152.56,152.52,1.31107969]
[1723221546100,7.3716031,152.56,152.52,1.31107969]
[1723221546292,0.8168031,152.56,152.52,6.5564]
[1723221546517,7.3716031,152.56,152.53,1.43643912]
[1723221546816,0.8168031,152.56,152.53,1.43643912]
[1723221547199,0.8168031,152.56,152.54,0.12549]
[1723221547411,0.8168031,152.56,152.54,1.68718832]
[1723221547715,0.8168031,152.56,152.55,0.12549]
[1723221548013,0.8168031,152.56,152.55,1.43620865]
[1723221548314,0.8168031,152.56,152.55,45.67238865]
[1723221548521,0.8168031,152.56,152.55,45.79787865]
[1723221548899,0.8168031,152.56,152.55,95.61636]
[1723221549101,0.8168031,152.56,152.55,50.61636]
[1723221549425,0.8168031,152.56,152.55,51.92689673]
[1723221549627,0.8168031,152.56,152.55,95.61636]
[1723221549913,0.8168031,152.56,152.55,7.94154156]
[1723221550119,0.8168031,152.56,152.55,13.18636]
[1723221550316,0.8168031,152.56,152.55,6.63116]
[1723221550503,0.8168031,152.56,152.53,16.247]
[1723221550709,0.8168031,152.56,152.51,60.1425]
[1723221550710,0.8168031,152.56,152.51,6.3204]
[1723221550903,6.5553,152.55,152.51,6.3204]
[1723221551430,0.8168031,152.56,152.48,15.0606]
[1723221551596,0.8168031,152.56,152.48,6.558]
[1723221551597,6.5561,152.53,152.48,6.558]
[1723221551908,6.5561,152.53,152.48,6.5582]
[1723221552213,6.5561,152.53,152.47,6.314]
[1723221552214,0.8168031,152.56,152.52,22.9465]
[1723221552423,0.8168031,152.56,152.52,16.3904]
[1723221552599,0.8168031,152.56,152.5,0.12549]
[1723221552800,0.8168031,152.56,152.51,16.3915]
[1723221553017,0.8168031,152.56,152.52,6.93257]
[1723221553322,0.8168031,152.56,152.53,6.556]
[1723221553499,0.8168031,152.56,152.52,0.25098]
[1723221553700,0.8168031,152.56,152.52,1.56195164]
[1723221553918,0.8168031,152.56,152.55,6.68069]
[1723221554118,0.8168031,152.56,152.55,8.24231066]
[1723221554332,0.8168031,152.56,152.55,45.67231066]
[1723221554898,0.8168031,152.56,152.55,45.79780066]
[1723221555321,0.8168031,152.56,152.55,8.36780066]
[1723221555557,0.8168031,152.56,152.55,0.12549]
[1723221555726,0.8168031,152.56,152.53,6.556]
[1723221556048,0.8168031,152.56,152.51,22.9486]
[1723221556355,0.8168031,152.56,152.51,16.3921]
[1723221556729,0.8168031,152.56,152.51,22.9489]
[1723221556933,0.8168031,152.56,152.54,6.5556]
[1723221557132,0.8168031,152.56,152.55,1.31074539]
[1723221557929,0.8168031,152.56,152.55,1.31086678]
[1723221558435,0.8168031,152.56,152.55,1.43635678]
[1723221558779,0.8168031,152.56,152.52,6.68189]
[1723221559059,0.8168031,152.56,152.53,0.12549]
[1723221559223,0.8168031,152.56,152.53,7.99224295]
[1723221559427,0.8168031,152.56,152.53,8.11773295]
[1723221559658,0.8168031,152.56,152.53,6.80678]
[1723221559838,7.3716031,152.56,152.53,0.12549]
[1723221560034,7.3716031,152.56,152.52,0.37647]
[1723221560252,0.8168031,152.56,152.52,6.93287]
[1723221560448,7.3716031,152.56,152.52,0.25098]
[1723221560637,0.8168031,152.56,152.51,16.3921]
[1723221560836,0.8168031,152.56,152.52,1.31109962]
[1723221561030,0.8168031,152.56,152.54,6.5556]
[1723221561233,0.8168031,152.56,152.55,6.5552]
[1723221561446,0.8168031,152.56,152.55,45.29603459]
[1723221561754,0.8168031,152.56,152.49,16.3934]
[1723221561923,0.8168031,152.56,152.5,6.80798]
[1723221561924,6.5552,152.55,152.5,6.80798]
[1723221562560,7.3716031,152.56,152.51,6.5568]
[1723221562757,7.3716031,152.56,152.49,16.3934]
[1723221562758,0.8168031,152.56,152.49,16.3934]
[1723221562945,6.5556,152.54,152.5,0.12549]
[1723221563142,6.5553,152.55,152.5,6.5573]
[1723221563852,6.5564,152.53,152.48,6.5581]
[1723221564660,6.5579,152.49,152.44,6.5596]
[1723221564879,6.5579,152.49,152.42,16.4011]
[1723221564880,6.5585,152.48,152.42,16.4011]
[1723221565163,22.8389,152.49,152.44,6.5596]
[1723221565354,16.2808,152.49,152.45,6.5594]
[1723221565546,16.2808,152.49,152.46,6.559]
[1723221565754,6.557,152.51,152.46,6.559]
[1723221565958,26.5565,152.52,152.47,7.87003889]
[1723221566287,6.5567,152.52,152.47,1.31153889]
[1723221566570,16.5308,152.53,152.44,0.12549]
[1723221566741,6.5577,152.5,152.44,0.37647]
[1723221566950,6.5583,152.48,152.44,0.12549]
[1723221567174,20.0,152.52,152.39,6.1834]
[1723221567175,6.559,152.47,152.39,6.1834]
[1723221567846,6.5591,152.46,152.42,6.5607]
[1723221568057,6.5587,152.47,152.42,6.5607]
[1723221568744,6.5591,152.46,152.41,6.5612]
[1723221569363,37.43,152.5,152.39,6.1834]
[1723221569566,20.0,152.52,152.42,37.43]
[1723221569868,19.11453169,152.53,152.43,1.31163597]
[1723221569869,6.557,152.51,152.43,1.31163597]
[1723221570061,6.5565,152.52,152.44,37.43]
[1723221570370,23.0869,152.53,152.45,1.43703184]
[1723221570568,6.5565,152.52,152.46,1.31142693]
[1723221570869,6.5574,152.5,152.45,0.25098]
[1723221571074,37.43,152.52,152.4,37.43]
[1723221571247,20.0,152.51,152.42,37.55549]
[1723221571566,6.5574,152.5,152.45,6.5591]
[1723221571867,16.5308,152.53,152.47,0.12549]
[1723221572166,16.5308,152.53,152.5,6.557]
[1723221572374,23.0869,152.53,152.48,6.5581]
[1723221572847,6.5555,152.55,152.5,6.5573]
[1723221573043,6.5557,152.54,152.49,6.5574]
[1723221573261,6.5557,152.54,152.5,7.86863104]
[1723221573447,6.5557,152.54,152.5,6.5573]
[1723221573649,6.5557,152.54,152.49,6.5576]
[1723221573849,6.5571,152.51,152.46,6.80998]
[1723221574177,6.557,152.51,152.46,0.25098]
[1723221574382,6.5566,152.52,152.47,6.5586]
[1723221574866,6.5566,152.52,152.48,6.5582]
[1723221575358,6.5566,152.52,152.47,6.5585]
[1723221575949,7.67234303,152.56,152.48,1.31147711]
[1723221576143,20.0,152.55,152.47,0.12549]
[1723221576355,20.0,152.55,152.47,0.25098]
[1723221576648,6.5561,152.53,152.48,6.68329]
[1723221576849,6.5569,152.51,152.47,1.31133494]
[1723221577074,6.5569,152.51,152.46,0.12549]
[1723221577253,20.0,152.55,152.45,0.12549]
[1723221577254,6.5581,152.49,152.45,0.12549]
[1723221577458,6.5574,152.5,152.45,6.68489]
[1723221577663,6.5574,152.5,152.46,6.559]
[1723221577958,6.5579,152.49,152.45,6.5594]
[1723221578268,6.5574,152.5,152.45,6.5594]
[1723221578768,37.43,152.52,152.44,6.5598]
[1723221578955,6.5582,152.48,152.41,37.43]
[1723221579154,6.5577,152.5,152.44,6.5596]
[1723221579357,6.5577,152.5,152.45,6.5594]
[1723221579765,37.43,152.52,152.4,16.4772]
[1723221579983,6.559,152.47,152.42,6.5607]
[1723221580473,6.5592,152.46,152.41,6.5611]
[1723221581476,6.56,152.44,152.39,6.562]
[1723221581974,6.5587,152.47,152.42,6.5606]
[1723221582279,6.5583,152.48,152.43,6.5603]
[1723221582453,20.0,152.47,152.43,6.5603]